fUSD/lending_fUSD_20240722
["ID","MTS","AMOUNT","RATE_DAILY","PERIOD"]
[332899667,1721663432588,-254.1312,0.000112,2]
[332899668,1721663432598,-199.2846,0.000112,2]
[332899669,1721663432610,-1757.85703762,0.0001129,2]
[332899670,1721663432620,-150.0,0.00011296,2]
[332899671,1721663432630,-8890.1113,0.000113,2]
[332899672,1721663432639,-5179.43934111,0.000113,2]
[332899673,1721663432669,-33559.5,0.000113,2]
[332899674,1721663432680,-1500.0,0.000113,2]
[332899675,1721663432709,-11421.47711567,0.000113,2]
[332899686,1721663438642,-500.0,0.00010399,2]
[332899687,1721663438652,-275.87935903,0.000113,2]
[332899688,1721663438779,-833.20432767,0.000113,2]
[332899689,1721663438899,-2348.40046312,0.000113,2]
[332899690,1721663439131,-450.95372915,0.000113,2]
[332899691,1721663439143,-538.76055017,0.000113,2]
[332899698,1721663440441,-346.49589451,0.000113,2]
[332899699,1721663440452,-906.3081169,0.000113,2]
[332899700,1721663440462,-7627.54303608,0.000113,2]
[332899701,1721663440473,-6195.30092757,0.000113,2]
[332899702,1721663440485,-4478.44625082,0.000113,2]
[332899703,1721663440496,-13773.26899395,0.000113,2]
[332899704,1721663440584,-10565.02189425,0.000113,2]
[332899705,1721663440593,-893.44904194,0.000113,2]
[332899706,1721663440604,-106.55095806,0.000113,2]
[332899707,1721663440616,-2118.43268353,0.000113,2]
[332899708,1721663440627,-1212.58999999,0.000113,2]
[332899709,1721663440637,-466.38107,0.000113,2]
[332899710,1721663440807,-17821.716,0.000113,2]
[332899711,1721663440949,-340.74,0.000113,2]
[332899712,1721663440959,-335.545,0.000113,2]
[332899742,1721663442963,-561.64706905,0.000113,2]
[332899753,1721663443170,-6038.77455863,0.000113,2]
[332899754,1721663443181,-71075.32706133,0.000113,2]
[332899755,1721663443249,-6143.28603514,0.000113,2]
[332899756,1721663443341,-3199.6238,0.000113,2]
[332899757,1721663443362,-13243.88568761,0.000113,2]
[332899758,1721663443373,-6690.018384,0.000113,2]
[332899759,1721663443385,-1345.40236269,0.000113,2]
[332899784,1721663482525,441.27,8.837e-05,2]
[332899785,1721663483206,5000.0,0.00023,120]
[332899786,1721663642188,171.02,8.571e-05,2]
[332899789,1721663697378,540.96311776,8.571e-05,2]
[332899790,1721663704469,1369.29906644,8.571e-05,2]
[332899791,1721663704747,179.97721001,8.571e-05,2]
[332899792,1721663710083,7297.47060579,8.571e-05,2]
[332899793,1721663710107,58145.17217992,8.571e-05,2]
[332899794,1721663731530,20358.82820975,8.571e-05,2]
[332899795,1721663784010,1370.45790599,8.571e-05,2]
[332899797,1721663925278,4778.79114212,8.571e-05,2]
[332899798,1721663949715,797.06604498,8.571e-05,2]
[332899800,1721664136726,386.99082141,8.571e-05,2]
[332899801,1721664183866,419.2,8.497e-05,2]
[332899819,1721664585511,150.0,0.00025,120]
[332899820,1721664602441,150.0,8.497e-05,2]
[332899821,1721664603595,150.0,8.497e-05,2]
[332899822,1721664603908,150.0,8.497e-05,2]
[332899823,1721664603978,150.0,8.497e-05,2]
[332899824,1721664604047,150.0,8.497e-05,2]
[332899825,1721664604119,150.0,8.497e-05,2]
[332899826,1721664604202,150.0,8.497e-05,2]
[332899827,1721664604279,150.0,8.497e-05,2]
[332899828,1721664604417,150.0,8.497e-05,2]
[332899829,1721664604518,150.0,8.497e-05,2]
[332899830,1721664604713,150.0,8.497e-05,2]
[332899831,1721664604946,150.0,8.497e-05,2]
[332899832,1721664605123,150.0,8.497e-05,2]
[332899833,1721664605301,150.0,8.497e-05,2]
[332899834,1721664605636,150.0,8.497e-05,2]
[332899835,1721664606056,150.0,8.497e-05,2]
[332899836,1721664606273,150.0,8.497e-05,2]
[332899837,1721664606414,150.0,8.497e-05,2]
[332899838,1721664606570,150.0,8.497e-05,2]
[332899839,1721664607009,150.0,8.497e-05,2]
[332899840,1721664607240,150.0,8.497e-05,2]
[332899841,1721664607663,150.0,8.497e-05,2]
[332899842,1721664607905,150.0,8.497e-05,2]
[332899843,1721664608619,150.0,8.497e-05,2]
[332899844,1721664608703,150.0,8.497e-05,2]
[332899845,1721664608771,150.0,8.497e-05,2]
[332899846,1721664608852,150.0,8.497e-05,2]
[332899847,1721664609348,150.0,8.497e-05,2]
[332899848,1721664609527,150.0,8.497e-05,2]
[332899849,1721664609706,150.0,8.497e-05,2]
[332899850,1721664609917,150.0,8.497e-05,2]
[332899851,1721664610073,150.0,8.497e-05,2]
[332899852,1721664610249,150.0,8.497e-05,2]
[332899853,1721664610458,188.17963668,8.497e-05,2]
[332899855,1721664632029,-760.62,0.00010258,2]
[332899856,1721664632039,-23900.0,0.00010272,2]
[332899857,1721664632049,-347.17091063,0.00010299,2]
[332899858,1721664632058,-521.40761903,0.00010299,2]
[332899859,1721664632068,-539.02654818,0.00010299,2]
[332899860,1721664632078,-525.50769677,0.00010299,2]
[332899861,1721664632087,-500.0,0.00010311,2]
[332899862,1721664632096,-290.05974808,0.00010388,2]
[332899863,1721664632107,-334.36254336,0.00010389,2]
[332899864,1721664632117,-155.27452529,0.00010389,2]
[332899865,1721664632126,-199.84136314,0.00010389,2]
[332899866,1721664632135,-3399.71436587,0.00010389,2]
[332899867,1721664632144,-150.0,0.00010405,2]
[332899868,1721664632153,-1000.0,0.00010522,2]
[332899869,1721664632163,-150.0,0.00010701,2]
[332899870,1721664632172,-419.2,0.00010761,2]
[332899871,1721664632182,-250.0,0.00010959,2]
[332899872,1721664632191,-167.56,0.00010959,2]
[332899873,1721664632200,-54611.10244399,0.00011,2]
[332899874,1721664632210,-299.99,0.00011,2]
[332899875,1721664632219,-3028.0524,0.00011,2]
[332899876,1721664632229,-8456.3042,0.00011,2]
[332899877,1721664632238,-441.03833598,0.00011,2]
[332899878,1721664632247,-39063.7926,0.00011005,2]
[332899879,1721664632256,-324.10235897,0.00011054,2]
[332899880,1721664632266,-1282.2955,0.00011086,2]
[332899881,1721664632276,-3520.9278,0.00011086,2]
[332899882,1721664632285,-499.99,0.00011086,2]
[332899883,1721664632295,-1000.0,0.00011086,2]
[332899884,1721664632304,-2500.0,0.00011086,2]
[332899885,1721664632314,-10023.6389,0.000111,2]
[332899886,1721664632324,-46522.7793,0.000111,2]
[332899887,1721664632333,-6331.7544,0.000111,2]
[332899888,1721664632343,-587.41617166,0.000111,2]
[332899889,1721664632354,-10527.13426416,0.00011105,2]
[332899890,1721664632364,-363.71380104,0.00011105,2]
[332899891,1721664632374,-5396.87761256,0.00011105,2]
[332899892,1721664632384,-155.0,0.00011105,2]
[332899893,1721664632394,-4471.12790684,0.00011105,2]
[332899894,1721664632404,-5611.86470446,0.00011105,2]
[332899895,1721664632413,-1632.38014955,0.0001116,2]
[332899896,1721664632423,-24761.55604362,0.00011186,2]
[332899897,1721664632432,-22630.61502022,0.00011186,2]
[332899898,1721664632442,-28088.56246171,0.00011186,2]
[332899899,1721664632451,-203.1480285,0.00011186,2]
[332899900,1721664632460,-2837.55930766,0.00011186,2]
[332899901,1721664632470,-100000.0,0.000112,2]
[332899902,1721664632479,-1000.0,0.000112,2]
[332899903,1721664632489,-6583.6712,0.000112,2]
[332899904,1721664632499,-4705.7756,0.000112,2]
[332899905,1721664632508,-587.41617165,0.00011275,2]
[332899906,1721664632518,-28372.56478803,0.000113,2]
[332899907,1721664632527,-500.0,0.000113,2]
[332899908,1721664632537,-3000.0,0.000113,2]
[332899909,1721664632546,-2206.29679381,0.00011321,2]
[332899910,1721664632556,-1404.11080109,0.00011322,2]
[332899911,1721664632567,-702.26829574,0.00011384,2]
[332899912,1721664632577,-519.51657514,0.00011384,2]
[332899913,1721664632587,-4496.1177545,0.00011392,2]
[332899914,1721664632597,-252.351,0.00011412,2]
[332899915,1721664632607,-30773.452,0.00011412,2]
[332899916,1721664632617,-17593.5888686,0.00011417,2]
[332899917,1721664632626,-255.0,0.00011425,2]
[332899918,1721664632635,-587.41617165,0.0001145,2]
[332899919,1721664632645,-587.41617165,0.00011625,2]
[332899920,1721664632654,-304.80832522,0.0001163,2]
[332899921,1721664632664,-150.0,0.00011634,2]
[332899922,1721664632674,-150.0,0.00011639,2]
[332899923,1721664632684,-150.0,0.0001164,2]
[332899924,1721664632693,-150.0,0.00011644,2]
[332899925,1721664632702,-150.0,0.00011648,2]
[332899926,1721664632711,-150.0,0.00011655,2]
[332899927,1721664632721,-150.0,0.00011657,2]
[332899928,1721664632730,-150.0,0.0001166,2]
[332899929,1721664632740,-1253.0,0.00011666,2]
[332899930,1721664632750,-1689.202,0.00011666,2]
[332899931,1721664632759,-620.0,0.00011666,2]
[332899932,1721664632769,-831.172,0.00011666,2]
[332899933,1721664632779,-164.325,0.00011666,2]
[332899934,1721664632789,-2421.815,0.00011666,2]
[332899936,1721664632800,-150.0,0.0001169,2]
[332899938,1721664632809,-150.0,0.00011721,2]
[332899940,1721664632820,-150.0,0.00011724,2]
[332899942,1721664632831,-150.0,0.00011736,2]
[332899944,1721664632840,-150.0,0.00011745,2]
[332899945,1721664632850,-150.0,0.00011757,2]
[332899946,1721664632862,-150.0,0.00011757,2]
[332899947,1721664632872,-1064.44564043,0.0001177,2]
[332899948,1721664632883,-23918.0,0.00011772,2]
[332899949,1721664632892,-150.0,0.00011774,2]
[332899950,1721664632902,-537.14137497,0.00011781,2]
[332899951,1721664632911,-537.14137495,0.00011787,2]
[332899952,1721664632921,-209.3391089,0.0001179,2]
[332899953,1721664632931,-175.09371247,0.0001179,2]
[332899954,1721664632940,-184.1543007,0.0001179,2]
[332899955,1721664632950,-488.26286374,0.0001179,2]
[332899956,1721664632959,-2324.21109593,0.0001179,2]
[332899957,1721664632969,-537.14137495,0.00011792,2]
[332899958,1721664632980,-7500.0,0.00011792,2]
[332899959,1721664632989,-209.33910888,0.00011793,2]
[332899960,1721664632999,-175.09371246,0.00011793,2]
[332899961,1721664633008,-209.33910888,0.00011795,2]
[332899962,1721664633018,-175.09371246,0.00011795,2]
[332899963,1721664633028,-209.33910888,0.00011798,2]
[332899964,1721664633038,-175.09371246,0.00011798,2]
[332899965,1721664633047,-4364.142956,0.000118,2]
[332899966,1721664633057,-709.2503867,0.000118,2]
[332899967,1721664633067,-709.2503867,0.000118,2]
[332899968,1721664633077,-75758.76644119,0.000118,2]
[332899969,1721664633087,-5000.0,0.000118,2]
[332899970,1721664633097,-1000.0,0.000118,2]
[332899971,1721664633108,-209.33910888,0.000118,2]
[332899972,1721664633117,-175.09371246,0.000118,2]
[332899973,1721664633127,-184.1543007,0.000118,2]
[332899974,1721664633138,-587.41617165,0.000118,2]
[332899975,1721664633147,-180.19668508,0.000118,2]
[332899976,1721664633157,-916.9314594,0.000118,2]
[332899977,1721664633166,-690.0,0.000118,2]
[332899978,1721664633176,-183.64362293,0.000118,2]
[332899979,1721664633185,-500.0,0.00011804,2]
[332899980,1721664633195,-500.0,0.00011805,2]
[332899981,1721664633204,-220.84,0.00011808,2]
[332899982,1721664633213,-150.0,0.00011826,2]
[332899983,1721664633224,-150.0,0.00011832,2]
[332899984,1721664633233,-1000.0,0.00011838,2]
[332899985,1721664633243,-500.0,0.0001184,2]
[332899986,1721664633252,-500.0,0.0001184,2]
[332899987,1721664633261,-500.0,0.0001184,2]
[332899988,1721664633271,-500.0,0.0001184,2]
[332899989,1721664633280,-500.0,0.0001184,2]
[332899990,1721664633289,-500.0,0.0001184,2]
[332899991,1721664633300,-500.0,0.0001184,2]
[332899992,1721664633309,-500.0,0.0001184,2]
[332899993,1721664633318,-500.0,0.0001184,2]
[332899994,1721664633328,-361.2183,0.0001184,2]
[332899995,1721664633337,-150.0,0.00011844,2]
[332899996,1721664633347,-329.4121689,0.0001185,2]
[332899997,1721664633358,-645.53830014,0.0001185,2]
[332899998,1721664633367,-150.0,0.00011852,2]
[332899999,1721664633376,-150.0,0.00011861,2]
[332900000,1721664633386,-150.0,0.00011865,2]
[332900001,1721664633396,-1000.0,0.0001187,2]
[332900002,1721664633406,-1000.0,0.0001187,2]
[332900003,1721664633416,-1000.0,0.0001187,2]
[332900004,1721664633426,-1000.0,0.0001187,2]
[332900005,1721664633436,-1000.0,0.0001187,2]
[332900006,1721664633446,-1000.0,0.0001187,2]
[332900007,1721664633455,-1000.0,0.0001187,2]
[332900008,1721664633465,-500.0,0.0001187,2]
[332900009,1721664633474,-500.0,0.0001187,2]
[332900010,1721664633484,-500.0,0.0001187,2]
[332900011,1721664633494,-500.0,0.0001187,2]
[332900012,1721664633504,-500.0,0.0001187,2]
[332900013,1721664633514,-592.01293806,0.0001187,2]
[332900014,1721664633524,-1000.0,0.0001187,2]
[332900015,1721664633534,-500.0,0.0001187,2]
[332900016,1721664633544,-150.0,0.00011872,2]
[332900017,1721664633554,-150.0,0.00011876,2]
[332900018,1721664633564,-150.0,0.00011876,2]
[332900019,1721664633575,-1776.21973541,0.00011878,2]
[332900020,1721664633584,-1000.0,0.0001188,3]
[332900021,1721664633594,-181270.32060327,0.0001188,2]
[332900022,1721664633605,-150.0,0.00011881,2]
[332900023,1721664633617,-42672.91173014,0.0001189,2]
[332900024,1721664633627,-488.26286374,0.0001189,2]
[332900025,1721664633639,-488.26286374,0.0001189,2]
[332900026,1721664633650,-162204.0,0.0001189,2]
[332900027,1721664633660,-1858.0,0.0001189,2]
[332900028,1721664633672,-743.0,0.0001189,2]
[332900029,1721664633682,-578.0,0.0001189,2]
[332900030,1721664633692,-42280.0,0.0001189,2]
[332900031,1721664633702,-149117.12686089,0.0001189,2]
[332900032,1721664633716,-451.92492773,0.0001189,2]
[332900033,1721664633731,-746.44510063,0.0001189,2]
[332900034,1721664633743,-280.56667432,0.0001189,2]
[332900035,1721664633755,-283.21327208,0.0001189,2]
[332900036,1721664633783,-322.91174239,0.0001189,2]
[332900037,1721664633795,-289.46000608,0.0001189,2]
[332900038,1721664633806,-13446.4,0.0001189,2]
[332900039,1721664633980,-2005.57355483,0.0001189,2]
[332900040,1721664634003,-462.53216332,0.0001189,2]
[332900043,1721664638042,-216.4,0.00010959,2]
[332900044,1721664638052,-1288.53266847,0.00011877,2]
[332900045,1721664638062,-797.62039035,0.0001189,2]
[332900046,1721664638360,-644.13974393,0.0001189,2]
[332900055,1721664640039,-358.56502115,0.0001189,2]
[332900056,1721664640259,-531.2423039,0.0001189,2]
[332900057,1721664640271,-569.80410334,0.0001189,2]
[332900058,1721664640282,-2014.81045,0.0001189,2]
[332900059,1721664640294,-1723.4944336,0.0001189,2]
[332900060,1721664641244,-361.48002948,0.000118,2]
[332900061,1721664641299,-919.6671834,0.000118,2]
[332900062,1721664641356,-8973.94728361,0.000118,2]
[332900063,1721664641367,-5268.16925146,0.0001189,2]
[332900064,1721664641376,-3376.25988264,0.00011892,2]
[332900065,1721664641388,-4207.9876383,0.00011892,2]
[332900066,1721664641399,-490.28419999,0.00011892,2]
[332900067,1721664641417,-9434.23526097,0.00011892,2]
[332900068,1721664641426,-4437.85493251,0.00011892,2]
[332900069,1721664641438,-1950.27975375,0.00011892,2]
[332900070,1721664641464,-346.32,0.00011892,2]
[332900071,1721664641475,-6618.563923,0.00011892,2]
[332900098,1721664643142,-4070.92648604,0.00011892,2]
[332900100,1721664643151,-17339.1232086,0.00011892,2]
[332900101,1721664643162,-17254.301322,0.00011892,2]
[332900103,1721664643172,-17169.4794353,0.00011892,2]
[332900106,1721664643181,-3766.2666728,0.00011892,2]
[332900108,1721664643191,-3036.4155911,0.00011892,2]
[332900110,1721664643199,-2306.5645093,0.00011892,2]
[332900112,1721664643208,-1576.7134276,0.00011892,2]
[332900114,1721664643217,-846.8623459,0.00011892,2]
[332900115,1721664643226,-150.0,0.00011895,2]
[332900118,1721664643236,-155.0,0.00011896,2]
[332900119,1721664643245,-42475.6683218,0.00011897,2]
[332900121,1721664643254,-10528.7406783,0.00011897,2]
[332900123,1721664643264,-10308.26134776,0.00011897,2]
[332900124,1721664643273,-88192.5601691,0.00011899,2]
[332900125,1721664643282,-210.44881553,0.00011899,2]
[332900126,1721664643292,-5939.92362757,0.00011899,2]
[332900127,1721664643301,-694.9,0.00011899,2]
[332900128,1721664643310,-5219.81824703,0.00011899,2]
[332900129,1721664643319,-83142.61738721,0.000119,2]
[332900130,1721664643375,-2796.88342727,0.000119,2]
[332900131,1721664643455,-1745.585,0.000119,2]
[332900137,1721664646308,-528.18990579,0.00010299,2]
[332900139,1721664646319,-43.75062804,0.000119,2]
[332900141,1721664646330,-723.31874969,0.000119,2]
[332900143,1721664647458,-156.48758241,0.00010299,2]
[332900144,1721664647467,-793.51241759,0.000119,2]
[332900145,1721664647479,-450.0,0.000119,2]
[332900146,1721664647491,-805.7866272,0.000119,2]
[332900147,1721664647502,-1255.11658704,0.000119,2]
[332900148,1721664647514,-1681.94639984,0.000119,2]
[332900149,1721664743221,168.26,8.535e-05,2]
[332900150,1721664763908,452.42,8.707e-05,2]
[332900151,1721664793794,600.0,8.707e-05,2]
[332900152,1721664797792,797.06604498,8.707e-05,2]
[332900153,1721664801783,291.0324454,8.707e-05,2]
[332900154,1721664802008,1746.85105153,8.707e-05,2]
[332900155,1721664802030,10508.62624412,8.707e-05,2]
[332900156,1721664875455,757.59814731,8.707e-05,2]
[332900158,1721664918787,578.20564769,8.707e-05,2]
[332900159,1721665057016,148976.12095805,8.707e-05,2]
[332900160,1721665326646,458.43,8.219e-05,2]
[332900168,1721665625667,1000.0,0.00025,120]
[332900169,1721665626961,-155.0,0.0001,2]
[332900170,1721665626984,-1195.92381998,0.0001,2]
[332900171,1721665627010,-659.69,0.00010019,2]
[332900172,1721665627033,-250.0,0.00010066,2]
[332900173,1721665627056,-496.89,0.00010104,2]
[332900174,1721665627082,-6376.1047,0.00010199,2]
[332900175,1721665627104,-168.0,0.00010235,2]
[332900176,1721665627127,-300.0,0.00010235,2]
[332900177,1721665627151,-17702.04,0.00010236,2]
[332900178,1721665627174,-1000.0,0.00010263,2]
[332900179,1721665627195,-150.0,0.00010298,2]
[332900180,1721665627217,-155.84623679,0.00010299,2]
[332900181,1721665627240,-201.7222076,0.00010299,2]
[332900182,1721665627261,-252.16809347,0.00010299,2]
[332900183,1721665627282,-159.93158074,0.00010299,2]
[332900184,1721665627303,-242.90606631,0.00010299,2]
[332900185,1721665627324,-162.51667171,0.00010299,2]
[332900186,1721665627346,-160.10633311,0.00010299,2]
[332900187,1721665627367,-155.57165676,0.00010299,2]
[332900188,1721665627389,-155.96028081,0.00010299,2]
[332900189,1721665627411,-202.77231055,0.00010299,2]
[332900190,1721665627432,-1283.37649013,0.00010299,2]
[332900191,1721665627453,-159.1155924,0.00010299,2]
[332900192,1721665627474,-155.4055951,0.00010299,2]
[332900193,1721665627496,-310.0,0.00010299,2]
[332900194,1721665627518,-1242.92063577,0.00010299,2]
[332900195,1721665627540,-2837.55930766,0.00010299,2]
[332900196,1721665627561,-1404.11080109,0.00010299,2]
[332900197,1721665627583,-2206.29679381,0.00010299,2]
[332900198,1721665627613,-155.0,0.00010299,2]
[332900199,1721665627640,-184.15854737,0.00010299,2]
[332900200,1721665627664,-519.51657514,0.00010299,2]
[332900201,1721665627688,-1981.52729762,0.00010299,2]
[332900202,1721665627712,-1632.38014955,0.00010299,2]
[332900203,1721665627734,-21205.89170621,0.00010299,2]
[332900204,1721665627757,-500.0,0.00010301,2]
[332900205,1721665627780,-177.67,0.00010301,2]
[332900206,1721665627803,-1278.79,0.00010301,2]
[332900207,1721665627827,-797.16,0.00010301,2]
[332900208,1721665627850,-499.99,0.00010301,2]
[332900209,1721665627874,-250.0,0.00010317,2]
[332900210,1721665627898,-458.43,0.00010478,2]
[332900211,1721665628446,-202.57926738,0.00010554,2]
[332900212,1721665628474,-587.79291605,0.00010554,2]
[332900213,1721665628496,-379.49848619,0.00010554,2]
[332900214,1721665628519,-150.0,0.00010701,2]
[332900215,1721665628542,-320.7457,0.000108,2]
[332900216,1721665628564,-940.0555,0.000109,2]
[332900217,1721665628586,-14926.90544809,0.000109,2]
[332900243,1721665832257,-1195.92381998,0.0001,2]
[332900244,1721665832268,-206.25171711,0.0001,2]
[332900245,1721665832279,-150.0,0.00010899,2]
[332900246,1721665832288,-197.82446291,0.000109,2]
[332900247,1721665832300,-3355.55,0.000109,2]
[332900248,1721665832324,-348.9147864,0.000109,2]
[332900249,1721665832357,-6690.0,0.000109,2]
[332900250,1721665832368,-3082.03617125,0.000109,2]
[332900251,1721665832380,-609.86344662,0.000109,2]
[332900252,1721665832412,-5993.974656,0.000109,2]
[332900253,1721665832423,-5580.00572873,0.000109,2]
[332900254,1721665832433,-300.26542006,0.000109,2]
[332900255,1721665832442,-2013.4647944,0.000109,2]
[332900256,1721665832452,-798.16396892,0.000109,2]
[332900257,1721665832461,-412.45599061,0.000109,2]
[332900258,1721665832472,-2500.0,0.000109,2]
[332900261,1721665832481,-412.45599061,0.000109,2]
[332900262,1721665832491,-300.0,0.000109,3]
[332900264,1721665832500,-180.33,0.00010959,2]
[332900266,1721665832509,-150.28,0.00010959,2]
[332900268,1721665832519,-751.41,0.00010959,2]
[332900270,1721665832528,-2212.1,0.00010959,2]
[332900272,1721665832538,-150.0,0.00010959,2]
[332900274,1721665832547,-257.09727178,0.00010996,2]
[332900275,1721665832556,-1238.01625717,0.00010999,2]
[332900277,1721665832565,-49991.18896308,0.00011,2]
[332900287,1721665838261,-473.66,0.00011,2]
[332900288,1721665838308,-1083.43000002,0.00011,2]
[332900289,1721665838319,-1273.04144729,0.00011,2]
[332900290,1721665838330,-2123.93814826,0.00011,2]
[332900291,1721665838471,-500.54133244,0.00011,2]
[332900574,1721665841080,-61746.95650891,0.00011,2]
[332900576,1721665841090,-155.000001,0.00011,2]
[332900578,1721665841100,-600.0,0.00011,4]
[332900580,1721665841113,-417.84,0.00011,2]
[332900583,1721665841126,-245000.0,0.00011005,2]
[332900585,1721665841136,-22970.50492063,0.00011005,2]
[332900587,1721665841147,-77029.49507937,0.00011005,2]
[332900589,1721665841156,-9722.4317,0.00011005,2]
[332900591,1721665841166,-151.0,0.00011005,2]
[332900593,1721665841175,-151.0,0.00011005,2]
[332900595,1721665841184,-900.0,0.000111,4]
[332900597,1721665841193,-158.79626674,0.00011105,2]
[332900599,1721665841205,-155.0,0.00011105,2]
[332900601,1721665841214,-155.0,0.00011105,2]
[332900603,1721665841224,-371.51160251,0.00011105,2]
[332900605,1721665841233,-155.0,0.00011105,2]
[332900607,1721665841242,-170.6856573,0.00011105,2]
[332900609,1721665841251,-347.23007097,0.00011105,2]
[332900611,1721665841260,-1255.6296301,0.00011105,2]
[332900613,1721665841270,-9258.81548687,0.00011105,2]
[332900615,1721665841279,-155.0,0.00011105,2]
[332900617,1721665841288,-2383.29549388,0.00011105,2]
[332900619,1721665841298,-270.01542758,0.00011105,2]
[332900621,1721665841307,-157.90834328,0.00011105,2]
[332900623,1721665841317,-1266.87800095,0.00011105,2]
[332900625,1721665841326,-202.63817161,0.00011105,2]
[332900627,1721665841335,-349.14572823,0.00011105,2]
[332900629,1721665841345,-175.66325036,0.00011105,2]
[332900631,1721665841355,-1273.92324229,0.00011105,2]
[332900633,1721665841365,-159.40015405,0.00011105,2]
[332900635,1721665841374,-342.13318843,0.00011105,2]
[332900637,1721665841383,-158.82139929,0.00011105,2]
[332900639,1721665841392,-155.0,0.00011105,2]
[332900641,1721665841402,-155.26512471,0.00011105,2]
[332900643,1721665841412,-2592.7162428,0.00011105,2]
[332900646,1721665841422,-155.0,0.00011105,2]
[332900648,1721665841431,-306.24010926,0.00011105,2]
[332900650,1721665841440,-155.0,0.00011105,2]
[332900651,1721665841449,-221.61034916,0.00011105,2]
[332900653,1721665841459,-1404.11080109,0.00011105,2]
[332900655,1721665841468,-308.85879004,0.00011105,2]
[332900658,1721665841477,-420.11,0.00011141,2]
[332900660,1721665841486,-420.11,0.000112,2]
[332900662,1721665841495,-1300.0,0.000112,4]
[332900664,1721665841505,-832.89,0.00011241,2]
[332900666,1721665841514,-420.11,0.00011241,2]
[332900668,1721665841523,-420.11,0.00011241,2]
[332900670,1721665841532,-1600.0,0.000113,4]
[332900672,1721665841541,-158.07088294,0.00011322,2]
[332900673,1721665841550,-1027.27902278,0.00011324,2]
[332900674,1721665841559,-155.0,0.00011324,2]
[332900675,1721665841569,-599.76372935,0.00011384,2]
[332900676,1721665841578,-155.0,0.00011384,2]
[332900677,1721665841587,-300.0,0.000114,4]
[332900678,1721665841596,-300.0,0.000115,4]
[332900679,1721665841606,-263.86139089,0.00011525,2]
[332900680,1721665841615,-196.87533747,0.00011525,2]
[332900681,1721665841625,-1000.0,0.00011546,2]
[332900682,1721665841634,-324.10235897,0.00011566,2]
[332900683,1721665841643,-300.0,0.000116,4]
[332900684,1721665841652,-1014.0,0.000116,2]
[332900685,1721665841662,-300.0,0.000117,4]
[332900686,1721665841671,-641.52981,0.0001178,2]
[332900687,1721665841681,-482.77171221,0.0001179,2]
[332900688,1721665841690,-1000.0,0.000118,2]
[332900689,1721665841700,-600.0,0.000118,4]
[332900690,1721665841709,-7500.0,0.000118,2]
[332900692,1721665841718,-500.0,0.00011804,2]
[332900693,1721665841728,-500.0,0.00011805,2]
[332900695,1721665841737,-1000.0,0.0001184,2]
[332900697,1721665841747,-1000.0,0.0001184,2]
[332900699,1721665841756,-1000.0,0.0001184,2]
[332900701,1721665841766,-1000.0,0.0001184,2]
[332900703,1721665841775,-1000.0,0.0001184,2]
[332900705,1721665841784,-1000.0,0.0001184,2]
[332900707,1721665841793,-1000.0,0.0001184,2]
[332900709,1721665841803,-1000.0,0.0001184,2]
[332900711,1721665841812,-1000.0,0.0001184,2]
[332900713,1721665841821,-1000.0,0.0001184,2]
[332900715,1721665841830,-1000.0,0.0001184,2]
[332900717,1721665841839,-1000.0,0.0001184,2]
[332900719,1721665841848,-1000.0,0.0001184,2]
[332900721,1721665841857,-1000.0,0.0001184,2]
[332900723,1721665841867,-1000.0,0.0001184,2]
[332900725,1721665841877,-1000.0,0.0001184,2]
[332900727,1721665841886,-1000.0,0.0001184,2]
[332900729,1721665841895,-172.0865,0.0001184,2]
[332900731,1721665841905,-163.84968816,0.0001185,2]